Cogmind - Beta 11.1 @@@ ROGUE MODE // 2022.09.05 @ 16:00:04 Player: Richard Blunt Result: Destroyed by D-53 Grenadier with Mini Grenade Launcher Performance ------------- Evolutions (1) 500 Regions Visited (4) 800 Robots Destroyed (51) 255 Value Destroyed (1235) 1235 Prototype IDs (3) 60 Alien Tech Used (0) 0 Bonus (38) 38 TOTAL SCORE: 2888 Bonus ------- High Alert Combat Kills 38 Cogmind --------- Core Integrity 0/400 Matter 300/300 Energy 90/100 System Corruption 0% Temperature Cool (0) Movement Core (50) Location -9/Mines Parts ------- > --- POWER (1) -------- (None) > --- PROPULSION (3) --- (None) > --- UTILITY (3) ------ (None) > --- WEAPON (2) ------- (None) > --- INVENTORY (5) ---- Ion Engine Improved Treads Improved Treads Improved Flight Unit Scythe Peak State ------------ > --- POWER ------------ Improved Ion Engine > --- PROPULSION ------- Light Treads Improved Treads Armored Wheel > --- UTILITY ---------- Large Storage Unit Light Armor Plating Hardened Light Armor Plating > --- WEAPON ----------- Autogun Autogun > --- INVENTORY -------- Ion Engine Improved Ion Engine Light Treads Light Treads Light Treads Wheel Improved Flight Unit Medium Storage Unit Medium Matter Pod Structural Scanner Signal Interpreter Seismic Detector Autogun EMP Blaster Ripper [Rating: 17] Favorites ----------- Power Ion Engine Engine Ion Engine Propulsion Light Treads Treads Light Treads Wheel Wheel Utility Large Storage Unit Device Structural Scanner Storage Large Storage Unit Protection Light Armor Plating Weapon Autogun Ballistic Gun Autogun Launcher Mini Grenade Launcher Special Weapon Mining Laser Slashing Weapon Ripper Build | -11 -10 -10 -9 -9 ------- Run | Scr Mat Min Mat Min Slots Evolved 2 | . . . 2 . Power . | . . . . . Propulsion 1 | . . . 1 . Utility 1 | . . . 1 . Weapon . | . . . . . Parts Attached 62 | 7 14 2 39 . Power 6 | 1 1 . 4 . Engine 6 | 1 1 . 4 . Core . | . . . . . Reactor . | . . . . . Propulsion 11 | 2 2 . 7 . Treads 8 | 1 1 . 6 . Leg . | . . . . . Wheel 3 | 1 1 . 1 . Hover . | . . . . . Flight . | . . . . . Utility 23 | 2 3 1 17 . Device 10 | 1 1 1 7 . Storage 5 | 1 2 . 2 . Processor . | . . . . . Hackware . | . . . . . Protection 8 | . . . 8 . Artifact . | . . . . . Weapon 22 | 2 8 1 11 . Energy Gun . | . . . . . Energy Cannon . | . . . . . Ballistic Gun 15 | 2 5 . 8 . Ballistic Cannon . | . . . . . Launcher 2 | . . . 2 . Special Weapon 3 | . 3 . . . Impact Weapon . | . . . . . Slashing Weapon 2 | . . 1 1 . Piercing Weapon . | . . . . . Special Melee Weapon . | . . . . . Unidentified Prototypes . | . . . . . Parts Lost 12 | . . . 4 8 Power 2 | . . . 1 1 Propulsion 3 | . . . . 3 Utility 4 | . . . 2 2 Weapon 3 | . . . 1 2 Highest Loss Streak 8 | . . . 1 8 To Critical Strikes . | . . . . . Average Slot Usage (%) 99 | . 100 100 99 98 Engine 12 | . 14 14 10 11 Treads 18 | . 14 14 22 21 Wheel 12 | . 14 14 11 11 Device 14 | . 14 14 15 11 Storage 12 | . 14 14 11 11 Protection 3 | . . . 5 10 Ballistic Gun 20 | . 24 14 18 21 Special Weapon 1 | . 3 2 . . Slashing Weapon 2 | . . 11 2 . Naked Turns . | . . . . . Heaviest Build 41 | 15 32 32 41 37 Greatest Support 40 | 16 20 10 40 12 Greatest Overweight (x) 3 | . 3 3 3 3 Average Overweight (x) 2 | . 1 2 2 2 Largest Inventory Capacity 15 | 8 15 15 15 15 Average Capacity 14 | 7 13 15 15 15 Most Carried 15 | 7 15 15 15 15 Average Carried 13 | 5 12 15 14 15 Final Capacity 15 | 8 15 15 15 5 Final Carried 15 | 7 15 15 15 5 Class Distribution -------------------- 53% | Mutant 46% | Scavenger-Mutant Dominant Class ---------------- Mutant | -10/Materials Scavenger-Mutant | -10/Mines Scavenger-Mutant | -9/Materials Mutant | -9/Mines Resources | -11 -10 -10 -9 -9 ----------- Run | Scr Mat Min Mat Min Matter Collected 1788 | 342 491 . 945 10 Remotely . | . . . . . Salvage Created 1896 | 134 666 . 1096 . Parts 117 | 10 33 . 74 . Haulers Intercepted 5 | . 2 . 3 . Recyclers Shooed 1 | . . . 1 . Parts Field Recycled . | . . . . . Retrieved Matter . | . . . . . Parts Self-Destructed . | . . . . . Prevented . | . . . . . Kills | -11 -10 -10 -9 -9 ------- Run | Scr Mat Min Mat Min Combat Hostiles Destroyed 35 | . 11 . 24 . Guns 28 | . 11 . 17 . AOE 7 | . . . 7 . Classes Destroyed 9 | 2 4 . 3 . Worker 4 | . 3 . 1 . Builder 1 | . . . 1 . Tunneler 2 | 2 . . . . Hauler 5 | . 2 . 3 . Recycler 2 | 1 . . 1 . Watcher 2 | . 1 . 1 . Swarmer 8 | . . . 8 . Grunt 19 | . 11 . 8 . Sentry 8 | . . . 8 . Best Kill Streak 6 | 2 5 . 6 . Combat Bots Only 6 | . 4 . 6 . Max Kills in Single Turn 4 | 1 1 . 4 . Gunslinging . | . . . . . Exploded 4 | . . . 4 . Melee . | . . . . . Uniques/NPCs Destroyed . | . . . . . Combat | -11 -10 -10 -9 -9 -------- Run | Scr Mat Min Mat Min Damage Taken 2464 | . 504 . 1022 938 Core 507 | . 107 . 127 273 Absorbed by Shields . | . . . . . Core Remaining (%) 78 | 100 . 57 . . Volleys Fired 165 | 12 69 . 79 5 Largest 2 | 2 2 . 2 2 Hottest 120 | 40 120 . 53 46 Shots Fired 298 | 24 129 . 135 10 Gun 284 | 24 117 . 133 10 Cannon . | . . . . . Launcher 2 | . . . 2 . Special 12 | . 12 . . . Kinetic 284 | 24 117 . 133 10 Thermal 12 | . 12 . . . Explosive 2 | . . . 2 . Electromagnetic . | . . . . . Robot Hit Streak 13 | 4 12 . 13 2 Robot Miss Streak 5 | 1 5 . 4 3 Penetration Max . | . . . . . Secondary Targets 2 | . 1 . 1 . Max Gunslinging Chain 1 | . 1 . 1 . Shots Hit Robots 173 | 16 70 . 82 5 Core Hits 84 | 3 32 . 48 1 Critical Kills . | . . . . . Critical Parts Destroyed . | . . . . . Critical Strikes . | . . . . . Melee Attacks 1 | . . . 1 . Impact . | . . . . . Slashing 1 | . . . 1 . Piercing . | . . . . . Sneak Attacks . | . . . . . Combat Hostiles . | . . . . . Follow-up Attacks . | . . . . . Damage Inflicted 2824 | 207 887 . 1652 78 Guns 2403 | 207 863 . 1255 78 Cannons . | . . . . . Explosions 397 | . . . 397 . Melee . | . . . . . Ramming . | . . . . . Kinetic 2403 | 207 863 . 1255 78 Thermal 24 | . 24 . . . Explosive 397 | . . . 397 . Electromagnetic . | . . . . . Impact . | . . . . . Slashing . | . . . . . Piercing . | . . . . . Highest Corruption . | . . . . . Average Corruption . | . . . . . Corruption Purged . | . . . . . Corruption Blocked . | . . . . . Overload Shots . | . . . . . Overflow Damage 5 | . . . 5 . Projectiles . | . . . . . Explosions 5 | . . . 5 . Melee . | . . . . . Knockbacks . | . . . . . Impact . | . . . . . Kinetic . | . . . . . Secondary . | . . . . . Self-Inflicted Damage . | . . . . . Shots . | . . . . . Rammed . | . . . . . Targets Rammed . | . . . . . Kicked . | . . . . . Crushed . | . . . . . Highest Temperature 150 | 6 60 . 150 16 Average Temperature 21 | 6 14 . 26 5 Received Heat Transfer 693 | . 306 . 387 . Siege Activations . | . . . . . Robots Corrupted . | . . . . . Combat Hostiles . | . . . . . Parts Fried . | . . . . . Impact Corruptions . | . . . . . Robots Melted . | . . . . . Combat Hostiles . | . . . . . Parts Melted . | . . . . . Heat Transferred 50 | . 50 . . . Parts Sabotaged . | . . . . . Parts Stolen . | . . . . . Parts Stripped . | . . . . . Power Chain Reactions . | . . . . . Missiles Intercepted . | . . . . . Alert | -11 -10 -10 -9 -9 ------- Run | Scr Mat Min Mat Min Peak Influence 576 | 15 259 60 576 213 Initial 213 | . 9 60 23 213 Average 162 | 5 138 60 203 210 Maximum Alert Level 2 | . 1 . 2 1 Low Security (%) 68 | 100 83 100 57 5 Level 1 23 | . 16 . 24 94 Level 2 8 | . . . 17 . Level 3 . | . . . . . Level 4 . | . . . . . Level 5 . | . . . . . High Security . | . . . . . Max Security . | . . . . . Squads Dispatched 3 | . 2 . 1 . Investigation . | . . . . . Extermination . | . . . . . Reinforcement 3 | . 2 . 1 . Assault . | . . . . . Garrison . | . . . . . Intercept . | . . . . . Searches Triggered . | . . . . . Construction Impeded . | . . . . . Haulers Reinforced . | . . . . . Active Scanning Responses . | . . . . . Cargo Convoy Interrupts . | . . . . . Stealth | -11 -10 -10 -9 -9 --------- Run | Scr Mat Min Mat Min Distress Signals . | . . . . . Communications Jammed . | . . . . . Distress Signals . | . . . . . Times Spotted 67 | . 25 . 37 5 Peak Tracking Total 7 | . 7 . 6 5 Tactical Retreats 3 | . 2 . 1 . Traps | -11 -10 -10 -9 -9 ------- Run | Scr Mat Min Mat Min Traps Triggered . | . . . . . Indirectly . | . . . . . Trap Hack Attempts . | . . . . . Triggered . | . . . . . Disarmed . | . . . . . Reprogrammed . | . . . . . Reused . | . . . . . Traps Extracted . | . . . . . Installed . | . . . . . Triggered . | . . . . . Machines | -11 -10 -10 -9 -9 ---------- Run | Scr Mat Min Mat Min Machines Disabled 2 | . . . 2 . Max in Single Turn 1 | . . . 1 . Machines Sabotaged . | . . . . . Garrisons Compromised . | . . . . . Overloaded Fab Kills . | . . . . . Hacking | -11 -10 -10 -9 -9 --------- Run | Scr Mat Min Mat Min Machines Accessed 12 | . 6 . 5 1 Terminals 10 | . 5 . 4 1 Fabricators . | . . . . . Repair Stations . | . . . . . Recycling Units 1 | . 1 . . . Scanalyzers 1 | . . . 1 . Garrison Access . | . . . . . Total Hacks 45 | . 23 . 19 3 Successful 26 | . 10 . 15 1 Failed 18 | . 13 . 3 2 Catastrophic 2 | . 2 . . . Database Lockouts 1 | . . . 1 . Manual 27 | . 17 . 10 . Terminals 35 | . 22 . 10 3 Fabricators . | . . . . . Repair Stations . | . . . . . Recycling Units 1 | . 1 . . . Scanalyzers 9 | . . . 9 . Garrison Access . | . . . . . Terminal Hacks 9 | . 5 . 3 1 Record 1 | . . . . 1 Robot Schematic 1 | . 1 . . . Robot Analysis 1 | . . . 1 . Prototype ID Bank 2 | . 2 . . . Branch Access Points 1 | . . . 1 . Locate Traps 3 | . 2 . 1 . Fabricator Hacks . | . . . . . Repair Station Hacks . | . . . . . Recycling Unit Hacks 1 | . 1 . . . Report Inventory 1 | . 1 . . . Scanalyzer 9 | . . . 9 . Insert Component 4 | . . . 4 . Analyze 5 | . . . 5 . Garrison Access Hacks . | . . . . . Unauthorized Hacks 7 | . 4 . 3 . Terminals 7 | . 4 . 3 . Assimilate 2 | . 2 . . . Botnet 5 | . 2 . 3 . Fabricators . | . . . . . Repair Stations . | . . . . . Recycling Units . | . . . . . Scanalyzers . | . . . . . Garrison Access . | . . . . . Data Cores Recovered . | . . . . . Used . | . . . . . Hacking Detections 11 | . 5 . 5 1 Full Trace Events 2 | . . . 2 . Feedback Events . | . . . . . Feedback Blocked . | . . . . . Robot Schematics Acquired 1 | . 1 . . . Robots Built . | . . . . . Authchips . | . . . . . Time . | . . . . . Total Robot Build Rating . | . . . . . Part Schematics Acquired 4 | . . . 4 . Parts Built . | . . . . . Authchips . | . . . . . Time . | . . . . . Total Part Build Rating . | . . . . . Parts Repaired . | . . . . . Time . | . . . . . Parts Recycled . | . . . . . Recycled Matter . | . . . . . Retrieved Matter . | . . . . . Retrieved Components . | . . . . . Parts Scanalyzed 4 | . . . 4 . Part Schematics Acquired 4 | . . . 4 . Parts Damaged 1 | . . . 1 . Bothacking | -11 -10 -10 -9 -9 ------------ Run | Scr Mat Min Mat Min Used RIF Installer . | . . . . . Robots Hacked . | . . . . . Non-combat . | . . . . . Combat . | . . . . . Robot Hacks Applied . | . . . . . Relay Couplers Released . | . . . . . Fabnet Peak Effective % . | . . . . . Robots Rewired . | . . . . . Allies Hacked . | . . . . . Hacks Repelled . | . . . . . Allies | -11 -10 -10 -9 -9 -------- Run | Scr Mat Min Mat Min Total Allies . | . . . . . Largest Group . | . . . . . Highest-Rated Group . | . . . . . Highest-Rated Ally . | . . . . . Total Orders . | . . . . . Ally Attacks . | . . . . . Total Damage . | . . . . . Kills . | . . . . . Allies Corrupted . | . . . . . Allies Melted . | . . . . . Intel | -11 -10 -10 -9 -9 ------- Run | Scr Mat Min Mat Min Robot Analysis Total 1 | . . . 1 . Derelict Logs Recovered 2 | . . 2 . . Drone Launches . | . . . . . Drone Recoveries . | . . . . . Exploration | -11 -10 -10 -9 -9 ------------- Run | Scr Mat Min Mat Min Turns Passed 3505 | 153 1100 306 1736 210 Spaces Moved 1994 | 94 719 249 823 109 Core 2 | 2 . . . . Treads 36 | . 15 . 21 . Legs . | . . . . . Wheels 1956 | 92 704 249 802 109 Hover . | . . . . . Flight . | . . . . . Fastest Speed 50 | 50 95 110 120 105 Average Speed 119 | 98 110 121 126 134 Slowest Speed 240 | 100 160 125 240 135 Overloaded Moves . | . . . . . Propulsion Burnouts . | . . . . . Robots Hopped . | . . . . . Cave-ins Triggered . | . . . . . Exploration Rate (%) 56 | 4 99 73 72 32 Regions Visited 4 Branch Regions 2 Pre-discovered Areas 1 | . . 1 . . Known Exits Taken 1 | . . . 1 . Unknown Exits Taken 3 | 1 1 1 . . Scrap Searched 1 | . . . . 1 Spaces Dug 22 | . 10 . 12 . Terrain Destroyed 29 | . 10 . 19 . Melee 1 | . . . 1 . Projectile 10 | . 10 . . . AOE 18 | . . . 18 . Terrain Rammed . | . . . . . Walls Destroyed . | . . . . . Machines Disabled . | . . . . . Actions | -11 -10 -10 -9 -9 --------- Run | Scr Mat Min Mat Min Total 2823 | 126 877 251 1405 164 Wait 532 | 7 46 . 430 49 Move 1990 | 93 718 248 822 109 Hop . | . . . . . Pick Up 35 | 7 15 . 13 . Fast Attach 12 | 7 . 1 4 . Attach 5 | . . . 5 . Detach . | . . . . . Swap 45 | . 14 1 30 . Drop 38 | . 15 1 21 1 Fire 165 | 12 69 . 79 5 Melee 1 | . . . 1 . Ram . | . . . . . Kick . | . . . . . Crush . | . . . . . Escape Stasis . | . . . . . Rewire . | . . . . . Trap . | . . . . . Miscellaneous . | . . . . . Route ------- -11/Scrapyard -10/Materials (discovered 5 exits: *Mat x3 / [*Min x2]) -10/Mines -9/Materials (discovered 5 exits: [*Mat] / *Min x2 / *Sto x2) -9/Mines History --------- Turn | Location | Event 18 | -11/Scrapyard | Discovered new exit (range 16) 154 | -11/Scrapyard | Entered Materials 307 | -10/Materials | Build established: Mutant 310 | -10/Materials | Discovered new exit (range 16) 432 | -10/Materials | Discovered new exit (range 7) 556 | -10/Materials | Discovered new exit (range 6) 669 | -10/Materials | Discovered new exit (range 3) 748 | -10/Materials | Discovered new exit (range 6) 1254 | -10/Materials | Entered Mines 1305 | -10/Mines | Learned location of Zion (-6) 1314 | -10/Mines | A weapon hastily lodged in a ceiling crevice suddenly fell to the ground 1471 | -10/Mines | Build established: Scavenger-Mutant 1522 | -10/Mines | Learned Materials stockpile data 1540 | -10/Mines | Discovered new exit (range 7) 1560 | -10/Mines | Entered Materials 1560 | -9/Materials | Evolved 2 slots: Propulsion x1, Utility x1 2314 | -9/Materials | Build established: Mutant 2669 | -9/Materials | Discovered new exit (range 7) 2813 | -9/Materials | Discovered new exit (range 16) 2944 | -9/Materials | Discovered new exit (range 15) 3208 | -9/Materials | Identified exit to Mines 3208 | -9/Materials | Identified exit to Storage 3212 | -9/Materials | Central database locked down 3296 | -9/Materials | Entered Mines 3464 | -9/Mines | Assembled infested the area 3469 | -9/Mines | Assisted by a Guerilla fighting off Assembled 3501 | -9/Mines | Core integrity fell below 50% 3505 | -9/Mines | Core integrity fell below 20% 3506 | -9/Mines | Destroyed by D-53 Grenadier with Mini Grenade Launcher Last Messages --------------- 03470_ D-53 Grenadier unfolds itself. 03470_ K-01 Serf collects debris. 03472_ TC-VMY(h) destroyed. 03483_ The unstable cave ceiling collapses. 03494_ Lgt. Treads destroyed. 03494_ Lgt. Armor Plating destroyed. 03496_ R-06 Scavenger collects Fission Core. 03498_ The unstable cave ceiling collapses. 03498_ Hvy. Assault Rifle destroyed. 03500_ R-06 Scavenger collects Flexi-carbon Leg. 03502_ The unstable cave ceiling collapses. 03502_ Autogun destroyed. 03502_ Lgt. Treads destroyed. 03504_ Structural Scanner destroyed. 03504_ Imp. Ion Engine destroyed. 03505_ The unstable cave ceiling collapses. 03505_ Arm. Wheel destroyed. 03506_ The unstable cave ceiling collapses. 03506_ U-05 Engineer builds a Wall. 03506_ Dropped Lrg. Storage Unit. Map ----- +----------------------------------------------------+ | ?????????????????????????????????????????????????? | | ?????????????????????????????????????????????????? | | ?????????????????????????????????????????????????? | | ?????????????????????????????????????????????????? | | ?????????????????????????????????????????????????? | | ?????????????????????????????????????????????????? | | ????????????????###??????????????????????????????? | | ????????????????###??????????????????????????????? | | ????????????????## ??????????????????????????????? | | ????????????????##!??????????????????????????????? | | ????????????????## ??????????????????????????????? | | ???????????????? ??????????????????????????????? | | ????????????????## ?????????????????????????????? | | ????????????????## ?????????????????????????????? | | ????????????????## ####?????????????????????????? | | ????????????????## ######???????????????????????? | | ????????????????## #####??????????????????????? | | ???????????????##### ####?????????????????????? | | ???????????????### #####???????????????????? | | ???????????????## ####???????????????????? | | ???????????????## ###??????????????????? | | ??????????????### ####?????????????????? | | ??????????????#### #####???????????????? | | ??????????????## ####???????????????? | | ??????????????### # =[! ##???????????????? | | ??????????????### [!@! ##???????????????? | | ????????????######## !d* ^##???????????????? | | ???????????########## ] ##???????????????? | | ?????????##### ###### ##???????????????? | | ????????##### rd= ###??????????????? | | ????????### #########??????????? | | ???????### ###### ##########???###????? | | ???##### ####### % "%" ##????? | | # ### ######### ########## ##????? | | # ######### #########???????? | | ######### s ###??????????????? | | #### ss#####??????????????? | | # """ ##### ####???????????????? | | ## """ ##### ##### # ?????????????????? | | #### """ #### ##?## ?????????????????? | | ###### ##?????? ?????????????????? | | ??######## #### ####???? ????????????????? | | ????###### #### ### #????????????????? | | ????????## ???## ##????????????????? | | ????????## ???## #### ###????????????????? | | ???????### ???## #### ####????????????????? | | ???????## ??## ###??????????????????? | | ???????## ##??#### ## ###???????????????????? | | ??????? ##??#### ## ??? ##????????????????????? | | ???????## ##????## ##????? ##????????????????????? | +----------------------------------------------------+ Best States ------------- Heat Dissipation 28 Energy Generation 12 Energy Capacity 265 Matter Stores 343 Matter Capacity 400 Sight Range 16 Robot Scan Range 14 Terrain Scan Density 10 Armor Coverage 300 Evasion (%) 41 Recoil Reduction 2 Item Schematics ----------------- Med. Storage Unit | -9/Materials | Scanalyzed Signal Interpreter | -9/Materials | Scanalyzed Ripper | -9/Materials | Scanalyzed Sensor Array | -9/Materials | Scanalyzed Robot Schematics ------------------ S-10 Pest | -10/Materials | Hacked Fabricated ------------ Nothing Alien Tech Used ----------------- None Achievements -------------- None Challenges ------------ None Game ------ Seed ShadeInsulatedShockpuncher Manual? 0 Play Time 01:09:52 Cumulative 53.9 hours Start 2022.09.04 @ 16:58:21 End 2022.09.05 @ 16:00:04 Sessions 4 Manual Loads 0 Difficulty Rogue Special Mode None Game No. 14 Rogue 14 Adventurer 0 Explorer 0 Win Type - Total 0 Types 0/0/0/0/0/0/0/0/0 Lore% 32 Gallery% 34 Achievement% 31 Wizard Run 0 Options --------- ASCII 0 Keyboard 0 Movement Mouse Keybinds 0 Fullscreen 1 Font 24/Smallcaps Map View 76x50 Tactical HUD 1 Map Filters NONE Filters NONE Steam 1 RUN: 9d367d02-4817-4724-86cd-0ec4b3ba668c